[Event "Live Chess"]
[Site "Chess.com"]
[Date "2024.06.02"]
[Round "-"]
[White "NeilDruggan73"]
[Black "Dhaydon19"]
[Result "0-1"]
[WhiteElo "1779"]
[BlackElo "2673"]
[TimeControl "300"]
[EndTime "20:38:53 PDT"]
[Termination "Dhaydon19 won by resignation"]

1. d4 {[%clk 0:04:46.5]} 1... Nf6 {[%clk 0:04:58.9]} 2. Bg5 {[%clk 0:04:43.6]}
2... d5 {[%clk 0:04:57.5]} 3. Bxf6 {[%clk 0:04:42.3]} 3... exf6 {[%clk 0:04:57]}
4. e3 {[%clk 0:04:41.2]} 4... c6 {[%clk 0:04:56.4]} 5. Nf3 {[%clk 0:04:35.2]}
5... Bd6 {[%clk 0:04:54]} 6. Nbd2 {[%clk 0:04:32.8]} 6... f5 {[%clk 0:04:52.5]}
7. c4 {[%clk 0:04:31.3]} 7... dxc4 {[%clk 0:04:50.7]} 8. Qc2 {[%clk 0:04:28.6]}
8... b5 {[%clk 0:04:48.2]} 9. a4 {[%clk 0:04:27.4]} 9... Bb7 {[%clk 0:04:45.8]}
10. Be2 {[%clk 0:04:21.2]} 10... g6 {[%clk 0:04:43.4]} 11. O-O {[%clk
0:04:18.9]} 11... a6 {[%clk 0:04:41.5]} 12. Rfd1 {[%clk 0:04:17.1]} 12... Nd7
{[%clk 0:04:39.5]} 13. b3 {[%clk 0:04:14.9]} 13... cxb3 {[%clk 0:04:37.9]} 14.
Nxb3 {[%clk 0:04:12.6]} 14... O-O {[%clk 0:04:37.5]} 15. axb5 {[%clk 0:04:09.3]}
15... cxb5 {[%clk 0:04:35.3]} 16. Nc5 {[%clk 0:04:06.5]} 16... Qc7 {[%clk
0:04:12.7]} 17. Rdc1 {[%clk 0:03:55]} 17... Rfc8 {[%clk 0:04:09.9]} 18. Ne1
{[%clk 0:02:53.7]} 18... Nxc5 {[%clk 0:04:04.8]} 19. dxc5 {[%clk 0:02:52.3]}
19... Qxc5 {[%clk 0:04:03.7]} 20. Qxc5 {[%clk 0:02:49.8]} 20... Rxc5 {[%clk
0:04:02]} 21. Nd3 {[%clk 0:02:47.5]} 21... Rxc1+ {[%clk 0:04:00.5]} 22. Rxc1
{[%clk 0:02:44.3]} 22... Rc8 {[%clk 0:04:00.1]} 23. Rxc8+ {[%clk 0:02:41.6]}
23... Bxc8 {[%clk 0:03:58.1]} 24. f4 {[%clk 0:02:37.2]} 24... Be6 {[%clk
0:03:56.2]} 25. Ne5 {[%clk 0:02:31.4]} 25... Bxe5 {[%clk 0:03:50.7]} 26. fxe5
{[%clk 0:02:30]} 26... Bc4 {[%clk 0:03:46.1]} 27. Bxc4 {[%clk 0:02:16.7]} 27...
bxc4 {[%clk 0:03:44.2]} 28. Kf1 {[%clk 0:02:16.2]} 28... a5 {[%clk 0:03:43.1]}
29. Ke2 {[%clk 0:02:15.8]} 29... a4 {[%clk 0:03:42.3]} 30. Kd2 {[%clk
0:02:15.4]} 30... a3 {[%clk 0:03:41.5]} 31. Kc2 {[%clk 0:02:14.9]} 31... Kf8
{[%clk 0:03:40]} 32. h3 {[%clk 0:02:10.3]} 32... Ke7 {[%clk 0:03:37.6]} 33. g4
{[%clk 0:02:09.8]} 33... fxg4 {[%clk 0:03:35.7]} 34. hxg4 {[%clk 0:02:07.9]}
34... Ke6 {[%clk 0:03:35.3]} 0-1

[Event "Live Chess"]
[Site "Chess.com"]
[Date "2024.06.02"]
[Round "-"]
[White "Delacorta"]
[Black "juniortay"]
[Result "0-1"]
[WhiteElo "1512"]
[BlackElo "2432"]
[TimeControl "300"]
[EndTime "20:39:13 PDT"]
[Termination "juniortay won by checkmate"]

1. d4 {[%clk 0:04:56.7]} 1... Nf6 {[%clk 0:04:58.4]} 2. Nf3 {[%clk 0:04:55.8]}
2... g6 {[%clk 0:04:57.8]} 3. e3 {[%clk 0:04:54.6]} 3... Bg7 {[%clk 0:04:57.2]}
4. c4 {[%clk 0:04:53.2]} 4... O-O {[%clk 0:04:57.1]} 5. Nc3 {[%clk 0:04:52.2]}
5... d6 {[%clk 0:04:57]} 6. Be2 {[%clk 0:04:50.4]} 6... Nbd7 {[%clk 0:04:56.6]}
7. Qc2 {[%clk 0:04:45.1]} 7... c6 {[%clk 0:04:54.6]} 8. Bd2 {[%clk 0:04:42.8]}
8... e5 {[%clk 0:04:53.6]} 9. dxe5 {[%clk 0:04:41.2]} 9... dxe5 {[%clk
0:04:53.5]} 10. O-O-O {[%clk 0:04:36.1]} 10... Qe7 {[%clk 0:04:52.3]} 11. h4
{[%clk 0:04:32.1]} 11... h5 {[%clk 0:04:50.8]} 12. e4 {[%clk 0:04:23.6]} 12...
Nc5 {[%clk 0:04:42.6]} 13. Bg5 {[%clk 0:04:18.4]} 13... a5 {[%clk 0:04:38.3]}
14. Rd2 {[%clk 0:04:03.7]} 14... Bg4 {[%clk 0:04:36.7]} 15. Rhd1 {[%clk
0:04:01.9]} 15... Bxf3 {[%clk 0:04:33]} 16. gxf3 {[%clk 0:03:53.9]} 16... Ne6
{[%clk 0:04:32.2]} 17. Rd7 {[%clk 0:03:46.5]} 17... Qxd7 {[%clk 0:04:28.8]} 18.
Rxd7 {[%clk 0:03:43.9]} 18... Nxd7 {[%clk 0:04:27.9]} 19. Qd2 {[%clk 0:03:35]}
19... Nd4 {[%clk 0:04:25.7]} 20. Bd3 {[%clk 0:03:27.5]} 20... Nc5 {[%clk
0:04:24.1]} 21. Qe3 {[%clk 0:03:23.7]} 21... f6 {[%clk 0:04:20.9]} 22. Bh6
{[%clk 0:03:19]} 22... Rfd8 {[%clk 0:04:19.3]} 23. Bxg7 {[%clk 0:03:16.2]} 23...
Kxg7 {[%clk 0:04:19.2]} 24. a3 {[%clk 0:03:06.8]} 24... Nxd3+ {[%clk 0:04:17.2]}
25. Kb1 {[%clk 0:02:53.6]} 25... Nf4 {[%clk 0:04:14.7]} 26. Na4 {[%clk
0:02:49.6]} 26... Nfe6 {[%clk 0:03:55.5]} 27. Nb6 {[%clk 0:02:46.3]} 27... Ra6
{[%clk 0:03:51.7]} 28. Na4 {[%clk 0:02:43.8]} 28... b5 {[%clk 0:03:44.8]} 29.
Nc3 {[%clk 0:02:41]} 29... bxc4 {[%clk 0:03:42.5]} 30. f4 {[%clk 0:02:40.3]}
30... Nxf4 {[%clk 0:03:40]} 31. Na4 {[%clk 0:02:31.2]} 31... Rb8 {[%clk
0:03:35.3]} 32. Nc5 {[%clk 0:02:21.4]} 32... Rab6 {[%clk 0:03:32.9]} 33. Na4
{[%clk 0:02:20.1]} 33... Rb3 {[%clk 0:03:29.6]} 34. Qd2 {[%clk 0:02:10.3]} 34...
Nd3 {[%clk 0:03:20.2]} 35. Qxa5 {[%clk 0:01:59.1]} 35... Rxb2+ {[%clk
0:03:16.6]} 36. Nxb2 {[%clk 0:01:57.2]} 36... Rxb2+ {[%clk 0:03:16.5]} 37. Ka1
{[%clk 0:01:51.6]} 37... Nb3# {[%clk 0:03:15.5]} 0-1

[Event "Live Chess"]
[Site "Chess.com"]
[Date "2024.06.02"]
[Round "-"]
[White "MagnersCarlsberg2870"]
[Black "Mikhail_Golubev"]
[Result "0-1"]
[WhiteElo "1834"]
[BlackElo "2535"]
[TimeControl "300"]
[EndTime "20:39:20 PDT"]
[Termination "Mikhail_Golubev won by resignation"]

1. Nf3 {[%clk 0:04:55.1]} 1... d6 {[%clk 0:04:58.8]} 2. g3 {[%clk 0:04:53.2]}
2... g6 {[%clk 0:04:57.6]} 3. Bg2 {[%clk 0:04:52.3]} 3... Bg7 {[%clk 0:04:57.1]}
4. O-O {[%clk 0:04:51]} 4... e5 {[%clk 0:04:56.3]} 5. e4 {[%clk 0:04:50]} 5...
Ne7 {[%clk 0:04:53.8]} 6. d3 {[%clk 0:04:49.1]} 6... O-O {[%clk 0:04:52.8]} 7.
Nbd2 {[%clk 0:04:47.8]} 7... f5 {[%clk 0:04:51.1]} 8. Re1 {[%clk 0:04:46.3]}
8... f4 {[%clk 0:04:50]} 9. Nf1 {[%clk 0:04:43.9]} 9... Nbc6 {[%clk 0:04:47.4]}
10. c3 {[%clk 0:04:40.4]} 10... Bg4 {[%clk 0:04:25.5]} 11. Qb3+ {[%clk
0:04:38.6]} 11... Kh8 {[%clk 0:04:24.1]} 12. Ng5 {[%clk 0:04:37.5]} 12... Qd7
{[%clk 0:03:53]} 13. Nf7+ {[%clk 0:04:35.5]} 13... Rxf7 {[%clk 0:03:51.9]} 14.
Qxf7 {[%clk 0:04:34.1]} 14... Be6 {[%clk 0:03:50.9]} 0-1

[Event "Live Chess"]
[Site "Chess.com"]
[Date "2024.06.02"]
[Round "-"]
[White "IgorSchukin"]
[Black "booktrunk"]
[Result "1-0"]
[WhiteElo "1760"]
[BlackElo "1507"]
[TimeControl "300"]
[EndTime "20:40:33 PDT"]
[Termination "IgorSchukin won by checkmate"]

1. e4 {[%clk 0:04:56.6]} 1... b6 {[%clk 0:04:58.1]} 2. Bc4 {[%clk 0:04:54.3]}
2... Bb7 {[%clk 0:04:54.3]} 3. Qh5 {[%clk 0:04:52.2]} 3... e6 {[%clk 0:04:51.7]}
4. d3 {[%clk 0:04:49.5]} 4... Nf6 {[%clk 0:04:48.9]} 5. Qe2 {[%clk 0:04:48]}
5... d5 {[%clk 0:04:46.4]} 6. exd5 {[%clk 0:04:46.3]} 6... Bxd5 {[%clk
0:04:43.7]} 7. Bxd5 {[%clk 0:04:45]} 7... Nxd5 {[%clk 0:04:42.8]} 8. Nc3 {[%clk
0:04:43.2]} 8... Nxc3 {[%clk 0:04:40.4]} 9. bxc3 {[%clk 0:04:42.1]} 9... Nd7
{[%clk 0:04:37.8]} 10. Nf3 {[%clk 0:04:41]} 10... Bc5 {[%clk 0:04:36]} 11. d4
{[%clk 0:04:39.4]} 11... Bd6 {[%clk 0:04:34.2]} 12. O-O {[%clk 0:04:37.7]} 12...
O-O {[%clk 0:04:31.7]} 13. Bg5 {[%clk 0:04:31.5]} 13... Be7 {[%clk 0:04:24.5]}
14. Bxe7 {[%clk 0:04:24.2]} 14... Qxe7 {[%clk 0:04:21.1]} 15. Rfe1 {[%clk
0:04:23.2]} 15... Nf6 {[%clk 0:04:15.6]} 16. c4 {[%clk 0:04:20]} 16... Rfe8
{[%clk 0:04:12.5]} 17. h3 {[%clk 0:04:16.9]} 17... Qd7 {[%clk 0:04:07.8]} 18. c3
{[%clk 0:04:14.5]} 18... c6 {[%clk 0:04:05.5]} 19. Ne5 {[%clk 0:04:12.6]} 19...
Qc7 {[%clk 0:04:02.9]} 20. Qf3 {[%clk 0:04:11]} 20... Rac8 {[%clk 0:03:58.3]}
21. Rab1 {[%clk 0:04:08]} 21... c5 {[%clk 0:03:49.7]} 22. dxc5 {[%clk
0:04:02.2]} 22... Qxc5 {[%clk 0:03:47.5]} 23. g4 {[%clk 0:03:52.1]} 23... Rf8
{[%clk 0:03:39]} 24. g5 {[%clk 0:03:48.8]} 24... Ne8 {[%clk 0:03:21.5]} 25. Nd7
{[%clk 0:03:34.9]} 25... Qxg5+ {[%clk 0:03:17.5]} 26. Kh2 {[%clk 0:03:33.3]}
26... Rxc4 {[%clk 0:03:11.7]} 27. Rg1 {[%clk 0:03:29.1]} 27... Qh6 {[%clk
0:03:03.8]} 28. Nxf8 {[%clk 0:03:21.1]} 28... Kxf8 {[%clk 0:03:02.4]} 29. Rb4
{[%clk 0:03:11.1]} 29... Rc5 {[%clk 0:02:58.8]} 30. Rf4 {[%clk 0:03:05.3]} 30...
Rc7 {[%clk 0:02:52.2]} 31. Rd1 {[%clk 0:03:00.6]} 31... g5 {[%clk 0:02:44.3]}
32. Rfd4 {[%clk 0:02:48.1]} 32... Qg6 {[%clk 0:02:39.7]} 33. Rd7 {[%clk
0:02:42.1]} 33... Rc4 {[%clk 0:02:33.1]} 34. Rxa7 {[%clk 0:02:38.5]} 34... Qc2
{[%clk 0:02:31.9]} 35. Qxf7# {[%clk 0:02:34.2]} 1-0

[Event "Live Chess"]
[Site "Chess.com"]
[Date "2024.06.02"]
[Round "-"]
[White "Mangoalo"]
[Black "ShanthamGrarks"]
[Result "1/2-1/2"]
[WhiteElo "1074"]
[BlackElo "1919"]
[TimeControl "300"]
[EndTime "20:41:58 PDT"]
[Termination "Game drawn by stalemate"]

1. f4 {[%clk 0:04:55.9]} 1... d5 {[%clk 0:04:56.7]} 2. Nc3 {[%clk 0:04:52.4]}
2... c5 {[%clk 0:04:55.4]} 3. d4 {[%clk 0:04:50.3]} 3... Nc6 {[%clk 0:04:54.3]}
4. dxc5 {[%clk 0:04:49.3]} 4... Bf5 {[%clk 0:04:52.1]} 5. Nf3 {[%clk 0:04:46.3]}
5... e6 {[%clk 0:04:50.5]} 6. Ne5 {[%clk 0:04:40.6]} 6... Nb4 {[%clk 0:04:45.9]}
7. e4 {[%clk 0:04:32.1]} 7... dxe4 {[%clk 0:04:43.4]} 8. Qxd8+ {[%clk 0:04:32]}
8... Rxd8 {[%clk 0:04:40.7]} 9. Bb5+ {[%clk 0:04:31.9]} 9... Nc6 {[%clk
0:04:34]} 10. Nxc6 {[%clk 0:04:29.5]} 10... bxc6 {[%clk 0:04:33.5]} 11. Bxc6+
{[%clk 0:04:27.9]} 11... Ke7 {[%clk 0:04:33]} 12. Be3 {[%clk 0:04:24.7]} 12...
Nf6 {[%clk 0:04:31]} 13. O-O {[%clk 0:04:21.8]} 13... Nd5 {[%clk 0:04:25.9]} 14.
Nxd5+ {[%clk 0:04:19.3]} 14... exd5 {[%clk 0:04:24.2]} 15. Rad1 {[%clk
0:04:18.4]} 15... Ke6 {[%clk 0:04:14.7]} 16. h3 {[%clk 0:04:13]} 16... h5 {[%clk
0:04:12]} 17. Kf2 {[%clk 0:04:10.2]} 17... Be7 {[%clk 0:04:07.8]} 18. b4 {[%clk
0:04:03.6]} 18... a6 {[%clk 0:04:04.9]} 19. a4 {[%clk 0:03:57.8]} 19... Bh4+
{[%clk 0:03:56.8]} 20. g3 {[%clk 0:03:56]} 20... Bf6 {[%clk 0:03:56.2]} 21. h4
{[%clk 0:03:54.6]} 21... d4 {[%clk 0:03:52.7]} 22. Bc1 {[%clk 0:03:50.5]} 22...
e3+ {[%clk 0:03:49.1]} 23. Kg2 {[%clk 0:03:45]} 23... e2 {[%clk 0:03:47.4]} 24.
Rfe1 {[%clk 0:03:41.8]} 24... Bg4 {[%clk 0:03:38.9]} 25. Bf3 {[%clk 0:03:36.8]}
25... Kf5 {[%clk 0:03:29.3]} 26. Rxe2 {[%clk 0:03:33.6]} 26... Rhe8 {[%clk
0:03:21.6]} 27. Bxg4+ {[%clk 0:03:29.4]} 27... hxg4 {[%clk 0:03:18.4]} 28. Rde1
{[%clk 0:03:20.8]} 28... Rxe2+ {[%clk 0:03:14.7]} 29. Rxe2 {[%clk 0:03:20.7]}
29... d3 {[%clk 0:03:12.8]} 30. cxd3 {[%clk 0:03:20.1]} 30... Rxd3 {[%clk
0:03:10.7]} 31. a5 {[%clk 0:03:16.3]} 31... Bc3 {[%clk 0:03:01.7]} 32. c6 {[%clk
0:03:14.2]} 32... Rd8 {[%clk 0:02:49.2]} 33. c7 {[%clk 0:03:06.2]} 33... Rc8
{[%clk 0:02:47.7]} 34. b5 {[%clk 0:02:58.9]} 34... Bxa5 {[%clk 0:02:36.9]} 35.
bxa6 {[%clk 0:02:54.3]} 35... Rxc7 {[%clk 0:02:32.7]} 36. Re5+ {[%clk
0:02:49.8]} 36... Kf6 {[%clk 0:02:29.1]} 37. Bb2 {[%clk 0:02:39.9]} 37... Bc3
{[%clk 0:02:01.3]} 38. Bxc3 {[%clk 0:02:34.5]} 38... Rxc3 {[%clk 0:02:00.1]} 39.
Ra5 {[%clk 0:02:32.5]} 39... Rc8 {[%clk 0:01:58.6]} 40. a7 {[%clk 0:02:31.4]}
40... Ra8 {[%clk 0:01:57.8]} 41. Kf2 {[%clk 0:02:27.9]} 41... Ke6 {[%clk
0:01:56.1]} 42. Ke3 {[%clk 0:02:26.9]} 42... g6 {[%clk 0:01:55.2]} 43. Ke4
{[%clk 0:02:25.9]} 43... f5+ {[%clk 0:01:52.8]} 44. Kd4 {[%clk 0:02:24.3]} 44...
Rd8+ {[%clk 0:01:51.2]} 45. Ke3 {[%clk 0:02:23.2]} 45... Ra8 {[%clk 0:01:49]}
46. Re5+ {[%clk 0:02:16.4]} 46... Kf6 {[%clk 0:01:48.2]} 47. Ra5 {[%clk
0:02:15.2]} 47... Ke6 {[%clk 0:01:47.3]} 48. Ra6+ {[%clk 0:02:14.4]} 48... Kf7
{[%clk 0:01:46]} 49. Kd4 {[%clk 0:02:10]} 49... Kg7 {[%clk 0:01:40.7]} 50. Ke5
{[%clk 0:02:05.9]} 50... Kh6 {[%clk 0:01:39.8]} 51. Kd6 {[%clk 0:01:55.9]} 51...
Kh5 {[%clk 0:01:36.5]} 52. Kc7 {[%clk 0:01:54.2]} 52... g5 {[%clk 0:01:34.9]}
53. hxg5 {[%clk 0:01:52.3]} 53... Rc8+ {[%clk 0:01:28.9]} 54. Kxc8 {[%clk
0:01:50.7]} 1/2-1/2

[Event "Live Chess"]
[Site "Chess.com"]
[Date "2024.06.02"]
[Round "-"]
[White "MagnersCarlsberg2870"]
[Black "IgorSchukin"]
[Result "1/2-1/2"]
[WhiteElo "1832"]
[BlackElo "1762"]
[TimeControl "300"]
[EndTime "20:44:58 PDT"]
[Termination "Game drawn by repetition"]

1. d4 {[%clk 0:04:57.2]} 1... d5 {[%clk 0:04:51.5]} 2. Bf4 {[%clk 0:04:55]} 2...
Nf6 {[%clk 0:04:50.8]} 3. e3 {[%clk 0:04:54.1]} 3... g6 {[%clk 0:04:50.2]} 4. c4
{[%clk 0:04:50]} 4... Bg7 {[%clk 0:04:49.2]} 5. Nc3 {[%clk 0:04:48.7]} 5... O-O
{[%clk 0:04:47.5]} 6. Nf3 {[%clk 0:04:46.1]} 6... c6 {[%clk 0:04:42.8]} 7. Be2
{[%clk 0:04:44.9]} 7... dxc4 {[%clk 0:04:41.4]} 8. Bxc4 {[%clk 0:04:43.6]} 8...
b5 {[%clk 0:04:40.6]} 9. Bb3 {[%clk 0:04:42.2]} 9... Bb7 {[%clk 0:04:39.9]} 10.
O-O {[%clk 0:04:40.8]} 10... a6 {[%clk 0:04:38.8]} 11. Ne5 {[%clk 0:04:34.4]}
11... Nbd7 {[%clk 0:04:37.2]} 12. Qf3 {[%clk 0:04:23.9]} 12... Nxe5 {[%clk
0:04:34.4]} 13. dxe5 {[%clk 0:04:18.4]} 13... Nh5 {[%clk 0:04:33.1]} 14. e6
{[%clk 0:04:12.6]} 14... f6 {[%clk 0:04:15.8]} 15. Bg3 {[%clk 0:03:53.2]} 15...
Nxg3 {[%clk 0:04:13.6]} 16. fxg3 {[%clk 0:03:52.1]} 16... Qb6 {[%clk 0:04:11]}
17. Rad1 {[%clk 0:03:46.3]} 17... Rad8 {[%clk 0:04:08.9]} 18. Rd7 {[%clk
0:03:44]} 18... Kh8 {[%clk 0:04:03.7]} 19. Rfd1 {[%clk 0:03:42.6]} 19... f5
{[%clk 0:03:56.1]} 20. Rxe7 {[%clk 0:03:35.2]} 20... Bxc3 {[%clk 0:03:49]} 21.
bxc3 {[%clk 0:03:24.9]} 21... Rxd1+ {[%clk 0:03:46.9]} 22. Qxd1 {[%clk
0:03:20.5]} 22... Qxe3+ {[%clk 0:03:43.5]} 23. Kh1 {[%clk 0:03:19.5]} 23... Ba8
{[%clk 0:03:37.5]} 24. h3 {[%clk 0:03:06.7]} 24... c5 {[%clk 0:03:31.1]} 25. Bd5
{[%clk 0:03:02.6]} 25... Qxg3 {[%clk 0:03:24.1]} 26. Bxa8 {[%clk 0:02:59.5]}
26... Rxa8 {[%clk 0:03:22.1]} 27. Qd7 {[%clk 0:02:54.8]} 27... Qe1+ {[%clk
0:03:16]} 28. Kh2 {[%clk 0:02:53.7]} 28... Qe5+ {[%clk 0:03:14]} 29. Kg1 {[%clk
0:02:44.4]} 29... Qe1+ {[%clk 0:03:12.4]} 30. Kh2 {[%clk 0:02:43.6]} 30... Qe5+
{[%clk 0:03:11.4]} 31. Kg1 {[%clk 0:02:42.9]} 31... Qe1+ {[%clk 0:03:10.3]} 32.
Kh2 {[%clk 0:02:42.3]} 1/2-1/2

[Event "Live Chess"]
[Site "Chess.com"]
[Date "2024.06.02"]
[Round "-"]
[White "Dhaydon19"]
[Black "McFim"]
[Result "1-0"]
[WhiteElo "2673"]
[BlackElo "1634"]
[TimeControl "300"]
[EndTime "20:45:12 PDT"]
[Termination "Dhaydon19 won by resignation"]

1. Nf3 {[%clk 0:04:58.7]} 1... d5 {[%clk 0:04:58.3]} 2. e3 {[%clk 0:04:58.2]}
2... Nf6 {[%clk 0:04:56.4]} 3. b3 {[%clk 0:04:57.9]} 3... c5 {[%clk 0:04:55]} 4.
Bb2 {[%clk 0:04:57.5]} 4... Nc6 {[%clk 0:04:54.2]} 5. Be2 {[%clk 0:04:57]} 5...
Bg4 {[%clk 0:04:52.3]} 6. d4 {[%clk 0:04:54.4]} 6... e6 {[%clk 0:04:48.5]} 7.
dxc5 {[%clk 0:04:53.1]} 7... Bxc5 {[%clk 0:04:46.5]} 8. O-O {[%clk 0:04:52.7]}
8... O-O {[%clk 0:04:44.7]} 9. Nbd2 {[%clk 0:04:52.3]} 9... Rc8 {[%clk
0:04:41.9]} 10. c4 {[%clk 0:04:51.4]} 10... dxc4 {[%clk 0:04:40]} 11. Nxc4
{[%clk 0:04:50]} 11... Qxd1 {[%clk 0:04:21.9]} 12. Rfxd1 {[%clk 0:04:48]} 12...
Rfd8 {[%clk 0:04:20.3]} 13. h3 {[%clk 0:04:45.2]} 13... Bh5 {[%clk 0:04:15.6]}
14. Rac1 {[%clk 0:04:39.9]} 14... Be7 {[%clk 0:04:12]} 15. Rxd8+ {[%clk
0:04:35.8]} 15... Rxd8 {[%clk 0:04:10.1]} 16. Nce5 {[%clk 0:04:33.8]} 16... Nxe5
{[%clk 0:04:00.6]} 17. Bxe5 {[%clk 0:04:30.7]} 17... Ne8 {[%clk 0:03:08.4]} 18.
Bd4 {[%clk 0:04:27]} 18... b6 {[%clk 0:03:05.3]} 19. g4 {[%clk 0:04:25.2]} 19...
Bg6 {[%clk 0:03:02.3]} 20. Ne5 {[%clk 0:04:24.4]} 20... Bf6 {[%clk 0:02:50.2]}
21. Nc6 {[%clk 0:04:16.4]} 21... Rd7 {[%clk 0:02:40.2]} 22. Bb5 {[%clk 0:04:03]}
22... Bxd4 {[%clk 0:02:34.6]} 23. Nxd4 {[%clk 0:04:00.7]} 23... Rd8 {[%clk
0:02:31.2]} 24. Bxe8 {[%clk 0:03:55.4]} 24... Rxe8 {[%clk 0:02:29.9]} 25. Rc7
{[%clk 0:03:55.1]} 25... Ra8 {[%clk 0:02:24]} 26. Nc6 {[%clk 0:03:53.5]} 26...
Bb1 {[%clk 0:02:14.3]} 27. a3 {[%clk 0:03:48.8]} 27... h5 {[%clk 0:01:47.3]} 28.
gxh5 {[%clk 0:03:42.3]} 28... Be4 {[%clk 0:01:44.3]} 29. Nxa7 {[%clk 0:03:38.3]}
29... Bf3 {[%clk 0:01:41.8]} 30. Rc8+ {[%clk 0:03:36.8]} 30... Rxc8 {[%clk
0:01:40.1]} 31. Nxc8 {[%clk 0:03:36.4]} 31... b5 {[%clk 0:01:38.2]} 32. Na7
{[%clk 0:03:33.2]} 32... b4 {[%clk 0:01:36.5]} 33. axb4 {[%clk 0:03:31.2]} 33...
Bxh5 {[%clk 0:01:34.1]} 34. Kg2 {[%clk 0:03:29.5]} 34... Bd1 {[%clk 0:01:27.7]}
35. b5 {[%clk 0:03:26]} 35... Bxb3 {[%clk 0:01:27.2]} 36. b6 {[%clk 0:03:21.4]}
36... Bd5+ {[%clk 0:01:25.6]} 37. f3 {[%clk 0:03:20.5]} 37... Kf8 {[%clk
0:01:14.3]} 38. Nc8 {[%clk 0:03:18.5]} 38... Bc6 {[%clk 0:00:56.4]} 39. Nd6
{[%clk 0:03:16.1]} 39... Ke7 {[%clk 0:00:53.2]} 40. b7 {[%clk 0:03:15.3]} 1-0

[Event "Live Chess"]
[Site "Chess.com"]
[Date "2024.06.02"]
[Round "-"]
[White "juniortay"]
[Black "Mikhail_Golubev"]
[Result "1-0"]
[WhiteElo "2442"]
[BlackElo "2525"]
[TimeControl "300"]
[EndTime "20:45:50 PDT"]
[Termination "juniortay won by resignation"]

1. e4 {[%clk 0:04:58.2]} 1... c5 {[%clk 0:04:58.5]} 2. Nf3 {[%clk 0:04:57.6]}
2... Nc6 {[%clk 0:04:57.5]} 3. b4 {[%clk 0:04:56.5]} 3... cxb4 {[%clk 0:04:53]}
4. d4 {[%clk 0:04:55.6]} 4... d5 {[%clk 0:04:43.1]} 5. exd5 {[%clk 0:04:55.5]}
5... Qxd5 {[%clk 0:04:42.3]} 6. c4 {[%clk 0:04:54.5]} 6... bxc3 {[%clk
0:04:35.6]} 7. Nxc3 {[%clk 0:04:52.5]} 7... Qa5 {[%clk 0:04:31.1]} 8. d5 {[%clk
0:04:52.1]} 8... Nf6 {[%clk 0:04:18.2]} 9. dxc6 {[%clk 0:04:49.2]} 9... Qxc3+
{[%clk 0:04:17]} 10. Bd2 {[%clk 0:04:48.7]} 10... Qxc6 {[%clk 0:04:16.4]} 11.
Be2 {[%clk 0:04:48.2]} 11... g6 {[%clk 0:03:30.5]} 12. O-O {[%clk 0:04:45.7]}
12... Bg7 {[%clk 0:03:29.7]} 13. Rc1 {[%clk 0:04:38]} 13... Qd5 {[%clk
0:03:20.8]} 14. Bc4 {[%clk 0:04:34.6]} 14... Qh5 {[%clk 0:03:11.9]} 15. Re1
{[%clk 0:04:24.5]} 15... O-O {[%clk 0:02:50.8]} 16. Rxe7 {[%clk 0:04:22.2]}
16... Nd5 {[%clk 0:01:52.8]} 17. Re4 {[%clk 0:03:44.8]} 17... Be6 {[%clk
0:01:23.4]} 18. Bg5 {[%clk 0:03:33]} 18... Nc3 {[%clk 0:01:04.1]} 19. Rxc3
{[%clk 0:03:20.9]} 19... Bxc3 {[%clk 0:01:04]} 20. Bxe6 {[%clk 0:03:10.8]} 20...
fxe6 {[%clk 0:01:02.3]} 21. Rh4 {[%clk 0:03:09.9]} 21... Rxf3 {[%clk 0:00:52.8]}
22. Rxh5 {[%clk 0:03:07.3]} 22... Rf5 {[%clk 0:00:49.6]} 23. Rh3 {[%clk
0:03:00]} 1-0